[Event "12th Philadelphia Open"]
[Site "Philadelphia"]
[Date "2018.04.01"]
[Round "9"]
[White "Mujumdar, Sameer"]
[Black "Peng, Shunkai"]
[Result "1/2-1/2"]
[ECO "B90"]
[WhiteElo "2092"]
[BlackElo "2291"]
[PlyCount "32"]
[EventDate "2018.03.??"]
[EventType "swiss"]
[EventRounds "9"]
[EventCountry "USA"]
[TimeControl "5400+30"]

1. e4 c5 2. Nf3 d6 3. d4 cxd4 4. Nxd4 Nf6 5. Nc3 a6 6. h3 e5 7. Nde2 h5 8. g3
Nbd7 9. Bg2 b5 10. O-O Bb7 11. Nd5 Nxd5 12. exd5 f5 13. a4 g6 14. Be3 bxa4 15.
Rxa4 Bh6 16. Bxh6 Rxh6 1/2-1/2

[Event "12th Philadelphia Open"]
[Site "Philadelphia"]
[Date "2018.04.01"]
[Round "9"]
[White "Niemann, Hans"]
[Black "Slade, Theodore"]
[Result "1-0"]
[ECO "E10"]
[WhiteElo "2302"]
[BlackElo "2020"]
[PlyCount "111"]
[EventDate "2018.03.??"]
[EventType "swiss"]
[EventRounds "9"]
[EventCountry "USA"]
[TimeControl "5400+30"]

1. d4 Nf6 2. c4 e6 3. Nf3 d5 4. g3 Be7 5. Bg2 O-O 6. O-O dxc4 7. Qc2 a6 8. a4
Bd7 9. Qxc4 Bc6 10. Bg5 Bd5 11. Qc2 Be4 12. Qd2 c5 13. dxc5 Bxc5 14. Qf4 Nbd7
15. Nc3 Bc6 16. b4 Be7 17. b5 axb5 18. axb5 Rxa1 19. Rxa1 Bxf3 20. Qxf3 Nc5 21.
Be3 b6 22. Rd1 Qb8 23. h3 Rd8 24. Rxd8+ Qxd8 25. Qc6 h6 26. Bf3 Qd6 27. Kg2
Qxc6 28. bxc6 Bd8 29. Nb5 Ne8 30. Bf4 Na6 31. Kf1 Kf8 32. Ke1 Ke7 33. Kd2 Bc7
34. Nxc7 Nexc7 35. e4 Kd8 36. Bd6 Ne8 37. e5 Nac7 38. Be2 Kc8 39. Kc3 Kd8 40.
Kd4 Kc8 41. f4 Kd8 42. g4 Kc8 43. h4 Kd8 44. h5 Kc8 45. Bc4 Kd8 46. g5 Nxd6 47.
exd6 Ne8 48. Ke5 hxg5 49. fxg5 f6+ 50. gxf6 gxf6+ 51. Kxe6 Ng7+ 52. Kf7 Ne8 53.
c7+ Nxc7 54. dxc7+ Kxc7 55. Kxf6 b5 56. Bxb5 1-0

[Event "12th Philadelphia Open"]
[Site "Philadelphia"]
[Date "2018.04.01"]
[Round "9"]
[White "Paciorkowski, Lev"]
[Black "Saravanan, V."]
[Result "1-0"]
[ECO "E90"]
[WhiteElo "2210"]
[BlackElo "2326"]
[PlyCount "79"]
[EventDate "2018.03.??"]
[EventType "swiss"]
[EventRounds "9"]
[EventCountry "USA"]
[TimeControl "5400+30"]

1. d4 Nf6 2. c4 g6 3. Nc3 Bg7 4. e4 d6 5. Nf3 O-O 6. h3 Na6 7. Be3 c6 8. Be2 e5
9. d5 Nh5 10. g3 f5 11. exf5 gxf5 12. Ng5 Nf6 13. g4 h6 14. Nf3 fxg4 15. hxg4
Nxg4 16. Ne4 Nxe3 17. fxe3 Bf5 18. Ng3 Qa5+ 19. Qd2 Qxd2+ 20. Kxd2 cxd5 21.
cxd5 Nc5 22. Rh4 Rf7 23. Rg1 Kh8 24. b4 Nd7 25. Ng5 Rff8 26. Nxf5 Rxf5 27. Ne6
Rg8 28. Nxg7 Rxg7 29. Rxh6+ Kg8 30. Rxg7+ Kxg7 31. Rxd6 Nf6 32. Rd8 Ne4+ 33.
Kd3 Ng3 34. Rd7+ Rf7 35. Rxf7+ Kxf7 36. Bg4 Ke7 37. e4 Kd6 38. Be2 Kc7 39. Ke3
Kd6 40. Bf3 1-0

[Event "12th Philadelphia Open"]
[Site "Philadelphia"]
[Date "2018.04.01"]
[Round "9"]
[White "Panda, Vedic"]
[Black "Lee, Jayden Z"]
[Result "1/2-1/2"]
[ECO "E81"]
[WhiteElo "2021"]
[BlackElo "1807"]
[PlyCount "79"]
[EventDate "2018.03.??"]
[EventType "swiss"]
[EventRounds "9"]
[EventCountry "USA"]
[TimeControl "5400+30"]

1. d4 Nf6 2. c4 g6 3. f3 Bg7 4. e4 d6 5. Nc3 O-O 6. Nge2 a6 7. Be3 Nbd7 8. Qd2
c5 9. d5 b5 10. cxb5 Qa5 11. a4 Nb6 12. Nc1 axb5 13. Bxb5 Ba6 14. Bxa6 Qxa6 15.
Qe2 Nc4 16. Bf2 Rfb8 17. Nd3 Nxb2 18. Nxb2 Qxe2+ 19. Nxe2 Rxb2 20. Be3 Nd7 21.
Kf2 Nb6 22. Rhb1 Rxa4 23. Rxb2 Bxb2 24. Rb1 Nc4 25. Bh6 Rb4 26. Rd1 Ne5 27. h3
f6 28. Bc1 Bxc1 29. Nxc1 Rb2+ 30. Ne2 c4 31. Ra1 c3 32. Ra8+ Kg7 33. Rc8 c2 34.
Ke3 c1=Q+ 35. Rxc1 Rb3+ 36. Rc3 Rxc3+ 37. Nxc3 g5 38. g4 Nc4+ 39. Kd3 Ne5+ 40.
Ke3 1/2-1/2

[Event "12th Philadelphia Open"]
[Site "Philadelphia"]
[Date "2018.04.01"]
[Round "9"]
[White "Sevian, Samuel"]
[Black "Katz, Alexander"]
[Result "1-0"]
[ECO "B07"]
[WhiteElo "2619"]
[BlackElo "2347"]
[PlyCount "63"]
[EventDate "2018.03.??"]
[EventType "swiss"]
[EventRounds "9"]
[EventCountry "USA"]
[TimeControl "5400+30"]

1. e4 d6 2. d4 Nf6 3. Nc3 g6 4. Be3 c6 5. Qd2 b5 6. Bd3 e5 7. Nf3 exd4 8. Bxd4
Bg7 9. O-O O-O 10. Be3 Re8 11. Bh6 Bh8 12. Rae1 Nbd7 13. h3 Nc5 14. Ng5 b4 15.
Nd1 Nxd3 16. cxd3 Ba6 17. Qxb4 Qb6 18. Qa3 Nh5 19. Nf3 Qb5 20. Nc3 Bxc3 21.
bxc3 Qxd3 22. Rd1 Qb5 23. Rfe1 d5 24. c4 Qb7 25. Rb1 Qc8 26. cxd5 cxd5 27. Rec1
Bc4 28. exd5 Qa6 29. Qxa6 Bxa6 30. Rb3 Be2 31. Nd4 Nf6 32. Be3 1-0

[Event "12th Philadelphia Open"]
[Site "Philadelphia"]
[Date "2018.04.01"]
[Round "9"]
[White "Shetty, Atulya"]
[Black "Hua, Eugene"]
[Result "1/2-1/2"]
[ECO "A37"]
[WhiteElo "2391"]
[BlackElo "2314"]
[PlyCount "107"]
[EventDate "2018.03.??"]
[EventType "swiss"]
[EventRounds "9"]
[EventCountry "USA"]
[TimeControl "5400+30"]

1. c4 c5 2. g3 Nc6 3. Bg2 g6 4. Nc3 Bg7 5. Nf3 e5 6. O-O d6 7. a3 Nge7 8. b4 e4
9. Ne1 f5 10. Rb1 cxb4 11. axb4 Be6 12. Qb3 d5 13. cxd5 Nxd5 14. Nxd5 Bxd5 15.
Qa4 O-O 16. Bb2 Bxb2 17. Rxb2 Qf6 18. Qa3 Ne5 19. d3 Rfc8 20. Rc2 Qb6 21. Rc5
Rxc5 22. bxc5 Qe6 23. dxe4 fxe4 24. Nc2 Nc4 25. Qc3 Rc8 26. Qd4 Qe5 27. Qxe5
Nxe5 28. Nb4 Bc4 29. Bxe4 Bxe2 30. Rc1 Bf3 31. Bxf3 Nxf3+ 32. Kg2 Nd2 33. Ra1
Rxc5 34. Rxa7 Rb5 35. Nd3 Kf7 36. f4 Kf6 37. Ra8 Rb3 38. Rd8 b6 39. g4 Nc4 40.
Kf2 h5 41. h3 hxg4 42. hxg4 Ke6 43. Ke2 Nd6 44. Rg8 Kf7 45. Rb8 Nc4 46. Rb7+
Kf8 47. Rc7 b5 48. Nc5 Re3+ 49. Kf2 Re7 50. Rc8+ Kf7 51. Rb8 Nd6 52. Kg3 Rc7
53. Na6 Rc8 54. Rxc8 1/2-1/2

[Event "12th Philadelphia Open"]
[Site "Philadelphia"]
[Date "2018.04.01"]
[Round "9"]
[White "Wegerle, Joerg"]
[Black "Balakrishnan, Praveen"]
[Result "0-1"]
[ECO "A46"]
[WhiteElo "2424"]
[BlackElo "2405"]
[PlyCount "109"]
[EventDate "2018.03.??"]
[EventType "swiss"]
[EventRounds "9"]
[EventCountry "USA"]
[TimeControl "5400+30"]

1. d4 Nf6 2. Nf3 e6 3. Bg5 h6 4. Bxf6 Qxf6 5. e4 d5 6. Nbd2 g6 7. Bd3 Bg7 8.
exd5 exd5 9. O-O O-O 10. c3 Nc6 11. Qb3 Qd6 12. Rfe1 b6 13. Re2 Bd7 14. Rae1
Rfe8 15. Qd1 Rxe2 16. Rxe2 Re8 17. Rxe8+ Bxe8 18. Qe2 Kf8 19. h3 Qe7 20. Kf1
Qxe2+ 21. Kxe2 Ke7 22. Nf1 Kd6 23. Ne3 Nd8 24. h4 Ne6 25. g3 c5 26. dxc5+ bxc5
27. h5 c4 28. Bc2 Kc5 29. b4+ cxb3 30. Bxb3 d4 31. cxd4+ Nxd4+ 32. Nxd4 Kxd4
33. hxg6 fxg6 34. f4 a5 35. Kd2 Bf8 36. Be6 Bb5 37. Ng4 Bg7 38. Ne3 Bf8 39. Ng4
Ke4 40. Ne5 g5 41. Ng6 Bb4+ 42. Kc2 Kf3 43. fxg5 hxg5 44. g4 Bd6 45. Nh8 Kf4
46. Nf7 Bf8 47. Kb3 Bb4 48. a3 Be7 49. Nh8 Be8 50. a4 Ke5 51. Bf7 Bd7 52. Bh5
Bb4 53. Nf7+ Kf4 54. Nh6 Bf8 55. Nf5 0-1

[Event "12th Philadelphia Open"]
[Site "Philadelphia"]
[Date "2018.04.01"]
[Round "9"]
[White "Wong, Jianwen"]
[Black "Goletiani, Rusudan"]
[Result "1/2-1/2"]
[ECO "A01"]
[WhiteElo "2153"]
[BlackElo "2306"]
[PlyCount "111"]
[EventDate "2018.03.??"]
[EventType "swiss"]
[EventRounds "9"]
[EventCountry "USA"]
[TimeControl "5400+30"]

1. b3 e5 2. Bb2 d6 3. e3 Nf6 4. d4 Qe7 5. c4 exd4 6. Bxd4 Nc6 7. Bb2 Bf5 8. Nc3
O-O-O 9. Nf3 d5 10. cxd5 Nb4 11. Nd4 Be4 12. Nxe4 Qxe4 13. a3 Nfxd5 14. Qb1
Qxb1+ 15. Rxb1 c5 16. axb4 cxd4 17. Bxd4 Bxb4+ 18. Ke2 f6 19. Kf3 Kb8 20. Rc1
Ne7 21. Rc4 Nc6 22. Bd3 Bd6 23. Bf5 Be5 24. Bc5 Rd2 25. Rc2 Rxc2 26. Bxc2 g6
27. h4 Rc8 28. Be4 f5 29. Bd5 Bf6 30. Kf4 Rd8 31. Bxc6 bxc6 32. h5 Rd2 33. hxg6
hxg6 34. e4 Bd4 35. Bxd4 Rxd4 36. Re1 Rb4 37. Re3 Kc7 38. Ke5 fxe4 39. g4 a5
40. Ke6 g5 41. Kf6 Kd6 42. Kxg5 Kd5 43. Kf4 a4 44. bxa4 Rxa4 45. g5 Ra2 46. f3
exf3 47. Rxf3 c5 48. g6 Rg2 49. Kf5 c4 50. Kf6 Kd4 51. Rf4+ Kd3 52. Rf3+ Kd2
53. g7 c3 54. Rxc3 Kxc3 55. Kf7 Rxg7+ 56. Kxg7 1/2-1/2

[Event "12th Philadelphia Open"]
[Site "Philadelphia"]
[Date "2018.04.01"]
[Round "9"]
[White "Yanayt, Eugene"]
[Black "Der Manuelian, Haik"]
[Result "1/2-1/2"]
[ECO "D30"]
[WhiteElo "2127"]
[BlackElo "2279"]
[PlyCount "38"]
[EventDate "2018.03.??"]
[EventType "swiss"]
[EventRounds "9"]
[EventCountry "USA"]
[TimeControl "5400+30"]

1. d4 d5 2. c4 e6 3. Nf3 Nf6 4. g3 Be7 5. Bg2 O-O 6. O-O dxc4 7. Qc2 a6 8. a4
Bd7 9. Rd1 Bc6 10. Nc3 Nbd7 11. e4 b5 12. d5 exd5 13. exd5 Bb7 14. axb5 axb5
15. Rxa8 Bxa8 16. Nd4 b4 17. Nc6 Bxc6 18. dxc6 bxc3 19. Qxc3 Bd6 1/2-1/2

[Event "12th Philadelphia Open"]
[Site "Philadelphia"]
[Date "2018.04.01"]
[Round "9"]
[White "Yanovsky, Vlad"]
[Black "Liang, Hairan"]
[Result "1/2-1/2"]
[ECO "B34"]
[WhiteElo "2112"]
[BlackElo "2173"]
[PlyCount "27"]
[EventDate "2018.03.??"]
[EventType "swiss"]
[EventRounds "9"]
[EventCountry "USA"]
[TimeControl "5400+30"]

1. e4 c5 2. Nf3 Nc6 3. d4 cxd4 4. Nxd4 g6 5. Nc3 Bg7 6. Be3 Nf6 7. Nxc6 bxc6 8.
e5 Ng8 9. Bd4 Nh6 10. e6 O-O 11. Bxg7 Kxg7 12. exd7 Qxd7 13. Qxd7 Bxd7 14.
O-O-O 1/2-1/2

[Event "12th Philadelphia Open"]
[Site "Philadelphia"]
[Date "2018.04.01"]
[Round "9"]
[White "Zhou, Aiden"]
[Black "Liu, Zhanhe"]
[Result "1/2-1/2"]
[ECO "A80"]
[WhiteElo "1977"]
[BlackElo "2011"]
[PlyCount "66"]
[EventDate "2018.03.??"]
[EventType "swiss"]
[EventRounds "9"]
[EventCountry "USA"]
[TimeControl "5400+30"]

1. d4 f5 2. Nf3 Nf6 3. g3 g6 4. Bg2 Bg7 5. O-O O-O 6. b3 d6 7. Bb2 c6 8. c4 Na6
9. Nbd2 Kh8 10. Qc2 Nc7 11. Nh4 Qe8 12. e4 fxe4 13. Nxe4 Nxe4 14. Bxe4 Bh3 15.
Rfe1 e6 16. f4 Qd7 17. Nf3 Bf5 18. Bxf5 exf5 19. Re3 Rae8 20. Rae1 Rxe3 21.
Rxe3 Re8 22. Qe2 Rxe3 23. Qxe3 Qe6 24. Qxe6 Nxe6 25. Kf2 Kg8 26. Ke3 c5 27. Bc3
cxd4+ 28. Bxd4 a6 29. Bxg7 Kxg7 30. b4 Kf6 31. Nd4 Nc7 32. a4 h5 33. b5 Ke7
1/2-1/2

[Event "12th Philadelphia Open"]
[Site "Philadelphia"]
[Date "2018.04.01"]
[Round "9.1"]
[White "Li, Ruifeng"]
[Black "Pedersen, Christian Kyndel"]
[Result "1-0"]
[ECO "B26"]
[WhiteElo "2585"]
[BlackElo "2405"]
[PlyCount "71"]
[EventDate "2018.03.??"]
[EventType "swiss"]
[EventRounds "9"]
[EventCountry "USA"]
[TimeControl "5400+30"]
[WhiteClock "1:03:13"]
[BlackClock "0:05:47"]

1. e4 {[%emt 0:00:00]} c5 {[%emt 0:00:00]} 2. Nc3 {[%emt 0:00:00]} d6 {[%emt 0:
00:00]} 3. g3 {[%emt 0:00:00]} Nc6 {[%emt 0:00:00]} 4. Bg2 {[%emt 0:00:00]} g6
{[%emt 0:00:00]} 5. d3 {[%emt 0:00:00]} Bg7 {[%emt 0:00:00]} 6. Be3 {[%emt 0:
00:00]} e6 {[%emt 0:00:00]} 7. Qd2 {[%emt 0:00:00]} Nd4 {[%emt 0:00:00]} 8.
Nce2 {[%emt 0:00:00]} h6 {[%emt 0:06:56]} 9. c3 {[%emt 0:00:00]} Nc6 {[%emt 0:
00:36]} 10. h3 {[%emt 0:00:00]} Nge7 {[%emt 0:01:06]} 11. Nf3 {[%emt 0:00:00]}
b6 {[%emt 0:03:10]} 12. O-O {[%emt 0:00:00]} Bb7 {[%emt 0:09:53]} 13. d4 {
[%emt 0:00:00]} Na5 {[%emt 0:02:28]} 14. Qc2 {[%emt 0:00:00]} O-O {[%emt 0:01:
57]} 15. Rad1 {[%emt 0:01:13]} Nc4 {[%emt 0:04:10]} 16. Bc1 {[%emt 0:01:25]}
cxd4 {[%emt 0:03:24]} 17. Nfxd4 {[%emt 0:01:21]} a6 {[%emt 0:02:02]} 18. b3 {
[%emt 0:01:12]} Na5 {[%emt 0:00:38]} 19. f4 {[%emt 0:03:21]} Nec6 {[%emt 0:18:
37]} 20. Nxc6 {[%emt 0:05:04]} Bxc6 {[%emt 0:00:41]} 21. Ba3 {[%emt 0:01:11]}
Nb7 {[%emt 0:00:59]} 22. Nd4 {[%emt 0:04:28]} Bxd4+ {[%emt 0:05:31]} 23. Rxd4 {
[%emt 0:02:59]} Qc7 {[%emt 0:01:03]} 24. Qd2 {[%emt 0:02:09]} Rfd8 {[%emt 0:03:
43]} 25. f5 {[%emt 0:02:57]} Kh7 {[%emt 0:03:00]} 26. Bc1 {[%emt 0:06:32]} g5 {
[%emt 0:00:46]} 27. fxe6 {[%emt 0:00:34]} fxe6 {[%emt 0:00:31]} 28. Rf6 {
[%emt 0:00:30]} e5 {[%emt 0:07:44]} 29. Qf2 {[%emt 0:01:07]} Rd7 {[%emt 0:14:
15]} 30. Qf5+ {[%emt 0:01:39]} Kg8 {[%emt 0:00:30]} 31. Qe6+ {[%emt 0:00:56]}
Kh8 {[%emt 0:02:22]} 32. Rxh6+ {[%emt 0:03:22]} Rh7 {[%emt 0:00:30]} 33. Bxg5 {
[%emt 0:00:30]} Rxh6 {[%emt 0:02:03]} 34. Qxh6+ {[%emt 0:00:30]} Qh7 {[%emt 0:
00:36]} 35. Qe6 {[%emt 0:01:17]} Qd7 {[%emt 0:03:02]} 36. Qg6 1-0

[Event "12th Philadelphia Open"]
[Site "Philadelphia"]
[Date "2018.04.01"]
[Round "9.2"]
[White "Panchanatham, Vignesh"]
[Black "Zhou, Jianchao"]
[Result "1/2-1/2"]
[ECO "D31"]
[WhiteElo "2384"]
[BlackElo "2611"]
[PlyCount "61"]
[EventDate "2018.03.??"]
[EventType "swiss"]
[EventRounds "9"]
[EventCountry "USA"]
[TimeControl "5400+30"]
[WhiteClock "0:34:50"]
[BlackClock "0:06:32"]

1. d4 {[%emt 0:00:00]} d5 {[%emt 0:00:00]} 2. c4 {[%emt 0:00:00]} e6 {[%emt 0:
00:00]} 3. Nc3 {[%emt 0:00:00]} a6 {[%emt 0:00:00]} 4. cxd5 {[%emt 0:00:00]}
exd5 {[%emt 0:00:00]} 5. Nf3 {[%emt 0:00:00]} Be7 {[%emt 0:00:00]} 6. Bf4 {
[%emt 0:00:00]} Nf6 {[%emt 0:00:00]} 7. Qc2 {[%emt 0:00:00]} c6 {[%emt 0:00:00]
} 8. e3 {[%emt 0:00:00]} Bg4 {[%emt 0:00:00]} 9. Bd3 {[%emt 0:00:00]} Nbd7 {
[%emt 0:00:00]} 10. Ne5 {[%emt 0:00:00]} Nxe5 {[%emt 0:11:42]} 11. Bxe5 {
[%emt 0:00:00]} Bd6 {[%emt 0:07:28]} 12. h3 {[%emt 0:00:00]} Be6 {[%emt 0:03:
49]} 13. O-O-O {[%emt 0:01:04]} Rc8 {[%emt 0:07:41]} 14. Kb1 {[%emt 0:02:28]}
c5 {[%emt 0:14:50]} 15. Qa4+ {[%emt 0:07:11]} Kf8 {[%emt 0:17:35]} 16. Bxd6+ {
[%emt 0:01:31]} Qxd6 {[%emt 0:00:30]} 17. dxc5 {[%emt 0:00:30]} Qxc5 {[%emt 0:
07:22]} 18. Rc1 {[%emt 0:02:25]} Qd6 {[%emt 0:02:49]} 19. Qd4 {[%emt 0:01:42]}
Ke7 {[%emt 0:01:53]} 20. g4 {[%emt 0:00:49]} Qc5 {[%emt 0:03:43]} 21. Qf4 {
[%emt 0:04:08]} Qd6 {[%emt 0:02:15]} 22. Rhe1 {[%emt 0:11:10]} Qxf4 {[%emt 0:
02:52]} 23. exf4 {[%emt 0:00:30]} Kd6 {[%emt 0:00:44]} 24. Rcd1 {[%emt 0:09:08]
} g6 {[%emt 0:01:11]} 25. Bc2 {[%emt 0:02:19]} Rhd8 {[%emt 0:04:55]} 26. Bb3 {
[%emt 0:04:14]} Kc5 {[%emt 0:01:00]} 27. Re5 {[%emt 0:03:18]} Nd7 {[%emt 0:01:
54]} 28. Re2 {[%emt 0:01:59]} Nb6 {[%emt 0:01:43]} 29. Re5 {[%emt 0:05:42]} Nd7
{[%emt 0:00:52]} 30. Re2 {[%emt 0:03:03]} Nf6 {[%emt 0:02:10]} 31. Re5 {
[%emt 0:07:29]} 1/2-1/2

[Event "12th Philadelphia Open"]
[Site "Philadelphia"]
[Date "2018.04.01"]
[Round "9.3"]
[White "Shabalov, Alexander"]
[Black "Popilski, Gil"]
[Result "1/2-1/2"]
[ECO "E11"]
[WhiteElo "2568"]
[BlackElo "2502"]
[PlyCount "45"]
[EventDate "2018.03.??"]
[EventType "swiss"]
[EventRounds "9"]
[EventCountry "USA"]
[TimeControl "5400+30"]
[WhiteClock "0:31:27"]
[BlackClock "1:52:39"]

1. d4 {[%emt 0:00:00]} Nf6 {[%emt 0:00:00]} 2. c4 {[%emt 0:00:00]} e6 {[%emt 0:
00:00]} 3. Nf3 {[%emt 0:00:00]} Bb4+ {[%emt 0:00:00]} 4. Nbd2 {[%emt 0:00:00]}
c5 {[%emt 0:00:00]} 5. dxc5 {[%emt 0:00:00]} O-O {[%emt 0:00:00]} 6. g3 {
[%emt 0:00:00]} Nc6 {[%emt 0:00:00]} 7. Bg2 {[%emt 0:00:00]} Bxc5 {[%emt 0:00:
00]} 8. O-O {[%emt 0:00:00]} d5 {[%emt 0:00:00]} 9. a3 {[%emt 0:00:00]} a5 {
[%emt 0:00:00]} 10. e3 {[%emt 0:00:00]} a4 {[%emt 0:00:00]} 11. Qc2 {[%emt 0:
02:47]} Qe7 {[%emt 0:00:00]} 12. Rd1 {[%emt 0:32:07]} Rd8 {[%emt 0:00:00]} 13.
b4 {[%emt 0:02:03]} axb3 {[%emt 0:00:00]} 14. Nxb3 {[%emt 0:00:30]} Bd6 {
[%emt 0:00:00]} 15. cxd5 {[%emt 0:16:23]} exd5 {[%emt 0:00:00]} 16. a4 {
[%emt 0:00:40]} Bg4 {[%emt 0:00:00]} 17. Qe2 {[%emt 0:04:38]} Ne4 {[%emt 0:00:
00]} 18. Bb2 {[%emt 0:00:58]} Bb4 {[%emt 0:00:00]} 19. h3 {[%emt 0:04:15]} Bh5
{[%emt 0:00:00]} 20. Nbd4 {[%emt 0:03:45]} Nc3 {[%emt 0:00:00]} 21. Bxc3 {
[%emt 0:00:36]} Bxc3 {[%emt 0:00:00]} 22. Nxc6 {[%emt 0:00:38]} bxc6 {[%emt 0:
00:00]} 23. Rac1 {[%emt 0:00:43]} 1/2-1/2

[Event "12th Philadelphia Open"]
[Site "Philadelphia"]
[Date "2018.04.01"]
[Round "9.4"]
[White "Hong, Andrew"]
[Black "Azarov, Sergei"]
[Result "1/2-1/2"]
[ECO "C93"]
[WhiteElo "2365"]
[BlackElo "2570"]
[PlyCount "97"]
[EventDate "2018.03.??"]
[EventType "swiss"]
[EventRounds "9"]
[EventCountry "USA"]
[TimeControl "5400+30"]
[WhiteClock "0:11:21"]
[BlackClock "0:22:59"]

1. e4 {[%emt 0:00:00]} e5 {[%emt 0:00:00]} 2. Nf3 {[%emt 0:00:00]} Nc6 {
[%emt 0:00:00]} 3. Bb5 {[%emt 0:00:00]} a6 {[%emt 0:00:00]} 4. Ba4 {[%emt 0:00:
00]} Nf6 {[%emt 0:00:00]} 5. O-O {[%emt 0:00:00]} Be7 {[%emt 0:00:00]} 6. Re1 {
[%emt 0:00:00]} b5 {[%emt 0:00:00]} 7. Bb3 {[%emt 0:00:00]} d6 {[%emt 0:00:00]}
8. c3 {[%emt 0:00:00]} O-O {[%emt 0:00:00]} 9. h3 {[%emt 0:00:00]} h6 {[%emt 0:
00:00]} 10. d4 {[%emt 0:00:00]} Re8 {[%emt 0:00:00]} 11. Nbd2 {[%emt 0:00:00]}
Bf8 {[%emt 0:00:00]} 12. a4 {[%emt 0:00:00]} Bd7 {[%emt 0:00:00]} 13. Bc2 {
[%emt 0:00:00]} exd4 {[%emt 0:00:00]} 14. cxd4 {[%emt 0:00:00]} Nb4 {[%emt 0:
00:00]} 15. Bb1 {[%emt 0:00:15]} bxa4 {[%emt 0:00:00]} 16. Nf1 {[%emt 0:13:29]}
d5 {[%emt 0:00:00]} 17. e5 {[%emt 0:02:55]} Ne4 {[%emt 0:00:00]} 18. N1d2 {
[%emt 0:05:28]} Nxd2 {[%emt 0:03:09]} 19. Bxd2 {[%emt 0:01:33]} a5 {[%emt 0:01:
01]} 20. Ra3 {[%emt 0:09:19]} c5 {[%emt 0:09:22]} 21. dxc5 {[%emt 0:06:17]}
Bxc5 {[%emt 0:02:16]} 22. Be3 {[%emt 0:13:12]} Bf8 {[%emt 0:06:20]} 23. Bf4 {
[%emt 0:11:00]} Qb6 {[%emt 0:05:51]} 24. Nh2 {[%emt 0:06:04]} d4 {[%emt 0:04:
31]} 25. Rg3 {[%emt 0:03:34]} d3 {[%emt 0:13:08]} 26. Rxd3 {[%emt 0:06:34]} Bf5
{[%emt 0:01:57]} 27. Rd2 {[%emt 0:02:31]} Bxb1 {[%emt 0:01:08]} 28. Qxb1 {
[%emt 0:00:30]} Rad8 {[%emt 0:02:22]} 29. Red1 {[%emt 0:02:25]} Rxd2 {[%emt 0:
04:11]} 30. Rxd2 {[%emt 0:00:41]} Rd8 {[%emt 0:10:20]} 31. e6 {[%emt 0:04:09]}
Rxd2 {[%emt 0:09:57]} 32. exf7+ {[%emt 0:00:34]} Kxf7 {[%emt 0:00:30]} 33. Bxd2
{[%emt 0:00:39]} Qg6 {[%emt 0:00:35]} 34. Qd1 {[%emt 0:02:09]} Qc2 {[%emt 0:02:
42]} 35. Qf3+ {[%emt 0:04:37]} Kg8 {[%emt 0:00:50]} 36. Bc3 {[%emt 0:01:36]} a3
{[%emt 0:02:58]} 37. bxa3 {[%emt 0:02:00]} Qc1+ {[%emt 0:00:30]} 38. Nf1 {
[%emt 0:00:49]} Qxa3 {[%emt 0:00:30]} 39. Nd2 {[%emt 0:02:52]} Qa2 {[%emt 0:04:
10]} 40. Qe4 {[%emt 0:04:19]} Qf7 {[%emt 0:05:30]} 41. Nc4 {[%emt 0:00:00]} a4
{[%emt 0:00:00]} 42. Bxb4 {[%emt 0:00:00]} Bxb4 {[%emt 0:00:00]} 43. Nb2 {
[%emt 0:00:00]} Qb3 {[%emt 0:00:00]} 44. Qa8+ {[%emt 0:00:00]} Kh7 {[%emt 0:00:
00]} 45. Nxa4 {[%emt 0:00:00]} Qd1+ {[%emt 0:00:00]} 46. Kh2 {[%emt 0:00:00]}
Qd4 {[%emt 0:00:00]} 47. Qf3 {[%emt 0:00:00]} Bd6+ {[%emt 0:00:00]} 48. g3 {
[%emt 0:00:00]} Bxg3+ {[%emt 0:00:00]} 49. fxg3 {[%emt 0:00:00]} 1/2-1/2